fUSD/lending_fUSD_20250521
["ID","MTS","AMOUNT","RATE_DAILY","PERIOD"]
[361817374,1747823547393,-420.0,0.00034794,5]
[361817375,1747823547404,-997.3,0.00034794,5]
[361817376,1747823547415,-420.0,0.00034794,5]
[361817377,1747823547425,-6358.26,0.00034794,5]
[361817378,1747823547438,-2461.55,0.00034794,5]
[361817379,1747823547450,-3960.15,0.00034794,5]
[361817380,1747823547461,-420.0,0.00034794,5]
[361817381,1747823547472,-2650.09,0.00034794,5]
[361817382,1747823547483,-1029.17,0.00034794,5]
[361817383,1747823547493,-2763.51,0.00034794,5]
[361817384,1747823547503,-655.48,0.00034794,5]
[361817385,1747823547514,-3823.46,0.00034794,5]
[361817386,1747823547525,-420.0,0.00034794,5]
[361817387,1747823547536,-420.0,0.00034794,5]
[361817388,1747823547546,-420.0,0.00034794,5]
[361817389,1747823547557,-420.0,0.00034794,5]
[361817390,1747823547567,-2138.94,0.00034794,5]
[361817391,1747823547578,-3514.65,0.00034794,5]
[361817392,1747823547588,-538.35861031,0.00034794,5]
[361817393,1747823547599,-578.47,0.00034794,5]
[361817394,1747823547611,-1778.66,0.00034794,5]
[361817395,1747823547621,-420.0,0.00034794,5]
[361817396,1747823547633,-4923.96,0.00034794,5]
[361817397,1747823547644,-7467.95,0.00034794,5]
[361817398,1747823547655,-420.87,0.00034794,5]
[361817399,1747823547665,-420.0,0.00034794,5]
[361817400,1747823547676,-1388.95,0.00034794,5]
[361817401,1747823547686,-1642.25,0.00034794,5]
[361817402,1747823547698,-15894.82,0.00034794,5]
[361817403,1747823547708,-7928.56,0.00034794,5]
[361817404,1747823547719,-3648.84,0.00034794,5]
[361817405,1747823547729,-420.0,0.00034794,5]
[361817406,1747823547739,-535.54,0.00034794,5]
[361817407,1747823547750,-18415.06,0.00034794,5]
[361817408,1747823547761,-420.0,0.00034794,5]
[361817409,1747823547773,-2111.71,0.00034794,5]
[361817410,1747823547783,-584.64,0.00034794,5]
[361817411,1747823547794,-1096.3,0.00034794,5]
[361817412,1747823547804,-420.0,0.00034794,5]
[361817413,1747823547815,-2534.37,0.00034794,5]
[361817414,1747823547825,-420.0,0.00034794,5]
[361817415,1747823547836,-2727.38,0.00034794,5]
[361817416,1747823547846,-481.82,0.00034794,5]
[361817417,1747823547857,-4064.18,0.00034794,5]
[361817418,1747823547868,-1605.11,0.00034794,5]
[361817419,1747823547879,-2791.01,0.00034794,5]
[361817420,1747823547890,-420.0,0.00034794,5]
[361817421,1747823547901,-583.63,0.00034794,5]
[361817422,1747823548236,-3277.38,0.00034794,5]
[361817423,1747823548258,-1946.19,0.00034794,5]
[361817424,1747823548268,-519.32350101,0.00034794,5]
[361817425,1747823548278,-4162.95,0.00034794,5]
[361817426,1747823548288,-486.64,0.00034794,5]
[361817427,1747823548298,-1793.09,0.00034794,5]
[361817428,1747823548307,-2365.3,0.00034794,5]
[361817429,1747823548317,-5030.39,0.00034794,5]
[361817430,1747823548327,-853.5,0.00034794,5]
[361817431,1747823548338,-336.10439176,0.00034794,5]
[361817432,1747823548350,-1065.78,0.00034794,5]
[361817433,1747823548360,-5351.26,0.00034794,5]
[361817434,1747823548372,-8618.58,0.00034794,5]
[361817435,1747823548385,-420.0,0.00034794,5]
[361817436,1747823548395,-4366.01,0.00034794,5]
[361817437,1747823548405,-1488.03,0.00034794,5]
[361817438,1747823548416,-1284.33,0.00034794,5]
[361817439,1747823548426,-5387.66,0.00034794,5]
[361817440,1747823548436,-3564.21,0.00034794,5]
[361817441,1747823548447,-420.0,0.00034794,5]
[361817442,1747823548458,-420.0,0.00034794,5]
[361817443,1747823548467,-643.95,0.00034794,5]
[361817444,1747823548477,-11304.41,0.00034794,5]
[361817445,1747823548487,-751.7,0.00034794,5]
[361817446,1747823548497,-873.4,0.00034794,5]
[361817447,1747823548507,-420.0,0.00034794,5]
[361817448,1747823548517,-781.82,0.00034794,5]
[361817449,1747823548526,-1096.95,0.00034794,5]
[361817450,1747823548538,-420.0,0.00034794,5]
[361817451,1747823548547,-441.74,0.00034794,5]
[361817452,1747823548557,-871.43,0.00034794,5]
[361817453,1747823548567,-420.0,0.00034794,5]
[361817454,1747823548577,-5264.38,0.00034794,5]
[361817455,1747823548587,-778.01,0.00034794,5]
[361817456,1747823548597,-3424.15,0.00034794,5]
[361817457,1747823548607,-6336.25,0.00034794,5]
[361817458,1747823548618,-420.0,0.00034794,5]
[361817459,1747823548628,-575.11,0.00034794,5]
[361817460,1747823548638,-2227.33,0.00034794,5]
[361817461,1747823548648,-469.12,0.00034794,5]
[361817462,1747823548659,-2778.38,0.00034794,5]
[361817463,1747823548669,-2282.35,0.00034794,5]
[361817464,1747823548679,-420.0,0.00034794,5]
[361817465,1747823548690,-420.0,0.00034794,5]
[361817466,1747823548700,-420.0,0.00034794,5]
[361817467,1747823548710,-460.0,0.00034794,5]
[361817468,1747823548720,-2508.06,0.00034794,5]
[361817469,1747823548730,-477.54,0.00034794,5]
[361817470,1747823548740,-420.0,0.00034794,5]
[361817471,1747823548750,-45711.39,0.00034794,5]
[361817472,1747823548760,-1438.01,0.00034794,5]
[361817473,1747823548770,-420.0,0.00034794,5]
[361817474,1747823548780,-420.0,0.00034794,5]
[361817475,1747823548791,-492.73,0.00034794,5]
[361817476,1747823548800,-2994.99,0.00034794,5]
[361817477,1747823548811,-2847.74,0.00034794,5]
[361817478,1747823548820,-845.16,0.00034794,5]
[361817479,1747823548831,-908.75,0.00034794,5]
[361817480,1747823548841,-7033.02,0.00034794,5]
[361817481,1747823548851,-420.0,0.00034794,5]
[361817482,1747823548861,-20631.06,0.00034794,5]
[361817483,1747823548871,-1653.01,0.00034794,5]
[361817484,1747823548881,-420.0,0.00034794,5]
[361817485,1747823548891,-440.6,0.00034794,5]
[361817486,1747823548901,-480.69,0.00034794,5]
[361817487,1747823548911,-420.0,0.00034794,5]
[361817488,1747823548921,-420.0,0.00034794,5]
[361817489,1747823548931,-1811.64,0.00034794,5]
[361817490,1747823548942,-1675.59,0.00034794,5]
[361817491,1747823548952,-1620.28,0.00034794,5]
[361817492,1747823548962,-1341.01,0.00034794,5]
[361817493,1747823548972,-2039.96,0.00034794,5]
[361817494,1747823548983,-659.87,0.00034794,5]
[361817495,1747823548994,-1650.39,0.00034794,5]
[361817496,1747823549004,-2331.07,0.00034794,5]
[361817497,1747823549014,-1130.47,0.00034794,5]
[361817498,1747823549024,-1170.52,0.00034794,5]
[361817499,1747823549034,-8529.77,0.00034794,5]
[361817500,1747823549044,-1019.14,0.00034794,5]
[361817501,1747823549054,-13852.49,0.00034794,5]
[361817502,1747823549063,-594.46,0.00034794,5]
[361817503,1747823549073,-420.0,0.00034794,5]
[361817504,1747823549084,-420.0,0.00034794,5]
[361817505,1747823549094,-528.88,0.00034794,5]
[361817506,1747823549104,-420.0,0.00034794,5]
[361817507,1747823549115,-729.81,0.00034794,5]
[361817508,1747823549125,-6448.31,0.00034794,5]
[361817509,1747823549136,-1260.39,0.00034794,5]
[361817510,1747823549146,-157.265004,0.00034794,5]
[361817511,1747823549157,-4031.81,0.00034794,5]
[361817512,1747823549167,-1826.19,0.00034794,5]
[361817513,1747823549178,-15980.3,0.00034794,2]
[361817514,1747823549189,-569.82,0.00034794,5]
[361817515,1747823549199,-1991.55,0.00034794,5]
[361817516,1747823549210,-420.0,0.00034794,5]
[361817517,1747823549222,-420.0,0.00034794,5]
[361817518,1747823549232,-711.84,0.00034794,5]
[361817519,1747823549243,-1316.77,0.00034794,5]
[361817520,1747823549252,-1559.3,0.00034794,5]
[361817521,1747823549262,-932.88,0.00034794,5]
[361817522,1747823549273,-1828.91,0.00034794,5]
[361817523,1747823549285,-1672.61,0.00034794,5]
[361817524,1747823549295,-414.88032163,0.00034794,5]
[361817525,1747823549306,-6643.48,0.00034794,5]
[361817526,1747823549317,-544.86913915,0.00034794,5]
[361817527,1747823549327,-5987.12,0.00034794,5]
[361817528,1747823549343,-420.0,0.00034794,5]
[361817529,1747823549353,-4970.74,0.00034794,5]
[361817530,1747823549363,-420.0,0.00034794,5]
[361817531,1747823549378,-187.68390433,0.00034794,5]
[361817532,1747823549388,-908.99,0.00034794,5]
[361817533,1747823549399,-1754.62,0.00034794,5]
[361817534,1747823549409,-636.17,0.00034794,5]
[361817535,1747823549420,-907.69,0.00034794,5]
[361817536,1747823549431,-338.86405042,0.00034794,5]
[361817537,1747823549441,-434.27,0.00034794,5]
[361817538,1747823549454,-420.0,0.00034794,5]
[361817539,1747823549466,-14282.24,0.00034794,5]
[361817540,1747823549476,-420.0,0.00034794,5]
[361817541,1747823549487,-1727.02,0.00034794,5]
[361817542,1747823549497,-2354.7,0.00034794,5]
[361817543,1747823549507,-2934.17,0.00034794,5]
[361817544,1747823549517,-420.0,0.00034794,5]
[361817545,1747823549527,-2098.09,0.00034794,5]
[361817546,1747823549539,-2370.12,0.00034794,5]
[361817547,1747823549549,-1608.41,0.00034794,5]
[361817548,1747823549559,-635.77,0.00034794,5]
[361817549,1747823549569,-2448.57,0.00034794,5]
[361817550,1747823549581,-565.39,0.00034794,5]
[361817551,1747823549591,-209.57187163,0.00034794,5]
[361817552,1747823549601,-832.67,0.00034794,5]
[361817553,1747823549611,-2132.27,0.00034794,5]
[361817554,1747823549621,-420.0,0.00034794,5]
[361817555,1747823549631,-1444.81,0.00034794,5]
[361817556,1747823549642,-674.57,0.00034794,5]
[361817557,1747823549653,-1244.04,0.00034794,5]
[361817558,1747823549663,-14461.5,0.00034794,5]
[361817559,1747823549673,-4167.33,0.00034794,5]
[361817560,1747823549683,-5215.67,0.00034794,5]
[361817561,1747823549693,-888.13,0.00034794,5]
[361817562,1747823549703,-420.0,0.00034794,5]
[361817563,1747823549714,-207938.64,0.00034794,5]
[361817564,1747823549724,-548.09,0.00034794,5]
[361817565,1747823549734,-420.0,0.00034794,5]
[361817566,1747823549744,-2319.06,0.00034794,5]
[361817567,1747823549755,-3257.11,0.00034794,5]
[361817568,1747823549767,-1507.21,0.00034794,5]
[361817569,1747823549777,-371.16980563,0.00034794,5]
[361817570,1747823549787,-1493.55,0.00034794,5]
[361817571,1747823549798,-2557.88,0.00034794,5]
[361817572,1747823549809,-1088.44,0.00034794,5]
[361817573,1747823549818,-2873.2,0.00034794,5]
[361817574,1747823549828,-420.0,0.00034794,5]
[361817575,1747823549839,-697.67,0.00034794,5]
[361817576,1747823549850,-420.0,0.00034794,5]
[361817577,1747823549860,-5582.21,0.00034794,5]
[361817578,1747823549871,-480.01,0.00034794,5]
[361817579,1747823549881,-2282.96,0.00034794,5]
[361817580,1747823549892,-1657.0,0.00034794,5]
[361817581,1747823549902,-799.92,0.00034794,5]
[361817582,1747823549913,-18765.11,0.00034794,5]
[361817583,1747823549923,-1063.9,0.00034794,5]
[361817584,1747823549934,-420.0,0.00034794,5]
[361817585,1747823549945,-673.17,0.00034794,5]
[361817586,1747823549955,-420.0,0.00034794,5]
[361817587,1747823549965,-3847.23,0.00034794,5]
[361817588,1747823549975,-420.0,0.00034794,5]
[361817589,1747823549985,-549.05,0.00034794,5]
[361817590,1747823549995,-474.32,0.00034794,5]
[361817591,1747823550005,-2564.95,0.00034794,5]
[361817592,1747823550015,-420.0,0.00034794,5]
[361817593,1747823550025,-1818.07,0.00034794,5]
[361817594,1747823550035,-42262.48,0.00034794,5]
[361817595,1747823550045,-420.0,0.00034794,5]
[361817596,1747823550055,-1719.68,0.00034794,5]
[361817597,1747823550065,-4510.74,0.00034794,5]
[361817598,1747823550075,-516.93,0.00034794,5]
[361817599,1747823550085,-3137.08,0.00034794,5]
[361817600,1747823550095,-506.82,0.00034794,5]
[361817601,1747823550105,-9532.22,0.00034794,5]
[361817602,1747823550115,-420.0,0.00034794,5]
[361817603,1747823550125,-1001.23,0.00034794,5]
[361817604,1747823550136,-420.0,0.00034794,5]
[361817605,1747823550146,-1349.86,0.00034794,5]
[361817606,1747823550157,-1554.78,0.00034794,5]
[361817607,1747823550168,-874.84,0.00034794,5]
[361817608,1747823550178,-2359.68,0.00034794,5]
[361817609,1747823550188,-627.61,0.00034794,5]
[361817610,1747823550197,-670.93,0.00034794,5]
[361817611,1747823550207,-420.0,0.00034794,5]
[361817612,1747823550217,-1909.1,0.00034794,5]
[361817613,1747823550228,-3667.82,0.00034794,5]
[361817614,1747823550238,-713.73,0.00034794,5]
[361817615,1747823550248,-420.0,0.00034794,5]
[361817616,1747823550259,-1201.04,0.00034794,5]
[361817617,1747823550269,-420.0,0.00034794,5]
[361817618,1747823550279,-1320.67,0.000348,2]
[361817619,1747823550289,-160.0,0.000349,10]
[361817620,1747823550299,-400.0,0.000349,12]
[361817621,1747823550310,-585.0,0.0003494,2]
[361817622,1747823550319,-1460.0,0.0003494,2]
[361817623,1747823550330,-921.0,0.0003494,2]
[361817624,1747823550340,-554.0,0.0003494,2]
[361817625,1747823550350,-1258.0,0.0003494,2]
[361817626,1747823550360,-1149.0,0.0003494,2]
[361817627,1747823550370,-3257.607,0.0003494,2]
[361817628,1747823550387,-154.0,0.0003494,2]
[361817629,1747823550397,-6834.0,0.0003494,2]
[361817630,1747823550407,-1306.0,0.0003494,2]
[361817631,1747823550417,-841.0,0.0003494,2]
[361817632,1747823550427,-3396.23563903,0.00034968,2]
[361817633,1747823550436,-5000.0,0.00035,5]
[361817634,1747823550447,-7058.28776324,0.00035,5]
[361817635,1747823550458,-3457.2054825,0.00035,60]
[361817636,1747823550467,-119775.19384327,0.00035,30]
[361817637,1747823550477,-10764.999999,0.00035,2]
[361817638,1747823550487,-71805.11395973,0.00035067,7]
[361817639,1747823550496,-408.11689882,0.00035067,7]
[361817640,1747823550506,-380.59503847,0.00035068,2]
[361817641,1747823550516,-380.59503847,0.00035068,2]
[361817642,1747823550527,-389.94200811,0.00035068,5]
[361817643,1747823550537,-420.0,0.00035068,5]
[361817644,1747823550547,-420.0,0.00035068,5]
[361817645,1747823550557,-420.0,0.00035068,5]
[361817646,1747823550566,-479.49582461,0.00035068,5]
[361817647,1747823550575,-420.0,0.00035068,5]
[361817648,1747823550586,-420.0,0.00035068,5]
[361817649,1747823550596,-868.63,0.00035068,5]
[361817650,1747823550606,-420.0,0.00035068,5]
[361817651,1747823550615,-771.73,0.00035068,5]
[361817652,1747823550625,-1206.97,0.00035068,5]
[361817653,1747823550635,-420.0,0.00035068,5]
[361817654,1747823550644,-336.58852823,0.00035068,5]
[361817655,1747823550654,-1764.15,0.00035068,5]
[361817656,1747823550663,-497.1,0.00035068,5]
[361817657,1747823550673,-550.16,0.00035068,5]
[361817658,1747823550683,-420.0,0.00035068,5]
[361817659,1747823550836,-420.0,0.00035068,5]
[361817660,1747823550846,-420.0,0.00035068,5]
[361817661,1747823550856,-965.56,0.00035068,5]
[361817662,1747823550865,-616.51,0.00035068,5]
[361817663,1747823550875,-420.0,0.00035068,5]
[361817664,1747823550884,-420.0,0.00035068,5]
[361817665,1747823550894,-562.65,0.00035068,5]
[361817666,1747823550904,-611.48,0.00035068,5]
[361817667,1747823550913,-420.0,0.00035068,5]
[361817668,1747823550924,-420.0,0.00035068,5]
[361817669,1747823550933,-420.0,0.00035068,5]
[361817670,1747823550943,-420.0,0.00035068,5]
[361817671,1747823550953,-499.33,0.00035068,5]
[361817672,1747823550963,-506.54,0.00035068,5]
[361817673,1747823550972,-911.46,0.00035068,5]
[361817674,1747823550982,-1153.75,0.00035068,5]
[361817675,1747823550991,-420.0,0.00035068,5]
[361817676,1747823551001,-379.5,0.00035068,5]
[361817677,1747823551010,-730.43,0.00035068,5]
[361817678,1747823551020,-420.0,0.00035068,5]
[361817679,1747823551029,-420.0,0.00035068,5]
[361817680,1747823551039,-1697.54,0.00035068,5]
[361817681,1747823551048,-579.77,0.00035068,5]
[361817682,1747823551057,-420.0,0.00035068,5]
[361817683,1747823551068,-420.0,0.00035068,5]
[361817684,1747823551077,-420.0,0.00035068,5]
[361817685,1747823551088,-570.61,0.00035068,5]
[361817686,1747823551098,-420.0,0.00035068,5]
[361817687,1747823551109,-420.0,0.00035068,5]
[361817688,1747823551119,-788.01,0.00035068,5]
[361817689,1747823551128,-420.0,0.00035068,5]
[361817690,1747823551137,-1490.72,0.00035068,5]
[361817691,1747823551147,-420.0,0.00035068,5]
[361817692,1747823551156,-917.84,0.00035068,5]
[361817693,1747823551165,-642.67,0.00035068,5]
[361817694,1747823551174,-420.0,0.00035068,5]
[361817695,1747823551184,-807.74,0.00035068,5]
[361817696,1747823551193,-901.58,0.00035068,5]
[361817697,1747823551203,-420.0,0.00035068,5]
[361817698,1747823551212,-3015.53,0.00035068,5]
[361817699,1747823551222,-420.0,0.00035068,5]
[361817700,1747823551232,-420.0,0.00035068,5]
[361817701,1747823551241,-460.17,0.00035068,5]
[361817702,1747823551251,-642.11,0.00035068,5]
[361817703,1747823551260,-420.0,0.00035068,5]
[361817704,1747823551270,-1185.77,0.00035068,5]
[361817705,1747823551279,-973.19,0.00035068,5]
[361817706,1747823551288,-497.57,0.00035068,5]
[361817707,1747823551299,-420.0,0.00035068,5]
[361817708,1747823551309,-1098.15,0.00035068,5]
[361817709,1747823551318,-420.0,0.00035068,5]
[361817710,1747823551328,-685.16,0.00035068,5]
[361817711,1747823551338,-420.0,0.00035068,5]
[361817712,1747823551347,-420.0,0.00035068,5]
[361817713,1747823551357,-448.34,0.00035068,5]
[361817714,1747823551367,-1485.21,0.00035068,5]
[361817715,1747823551379,-818.23,0.00035068,5]
[361817716,1747823551388,-443.81,0.00035068,5]
[361817717,1747823551399,-1526.88,0.00035068,5]
[361817718,1747823551409,-420.0,0.00035068,5]
[361817719,1747823551419,-420.0,0.00035068,5]
[361817720,1747823551429,-470.16,0.00035068,5]
[361817721,1747823551439,-443.58,0.00035068,5]
[361817722,1747823551451,-669.64,0.00035068,5]
[361817723,1747823551461,-420.0,0.00035068,5]
[361817724,1747823551471,-468.70768861,0.00035068,5]
[361817725,1747823551480,-937.45,0.00035068,5]
[361817726,1747823551490,-2266.87,0.00035068,5]
[361817727,1747823551500,-420.0,0.00035068,5]
[361817728,1747823551510,-420.0,0.00035068,5]
[361817729,1747823551520,-420.0,0.00035068,5]
[361817730,1747823551529,-442.68,0.00035068,5]
[361817731,1747823551539,-420.0,0.00035068,5]
[361817732,1747823551549,-655.53,0.00035068,5]
[361817733,1747823551559,-597.09,0.00035068,5]
[361817734,1747823551568,-497.8850905,0.00035068,5]
[361817735,1747823551578,-636.42,0.00035068,5]
[361817736,1747823551589,-420.0,0.00035068,5]
[361817737,1747823551598,-420.0,0.00035068,5]
[361817738,1747823551611,-838.78,0.00035068,5]
[361817739,1747823551620,-420.0,0.00035068,5]
[361817740,1747823551630,-493.93,0.00035068,5]
[361817741,1747823551640,-420.0,0.00035068,5]
[361817742,1747823551649,-420.0,0.00035068,5]
[361817743,1747823551661,-560.23,0.00035068,5]
[361817744,1747823551672,-420.0,0.00035068,5]
[361817745,1747823551682,-1078.18,0.00035068,5]
[361817746,1747823551691,-420.0,0.00035068,5]
[361817747,1747823551701,-2322.3,0.00035068,5]
[361817748,1747823551711,-420.0,0.00035068,5]
[361817749,1747823551722,-420.0,0.00035068,5]
[361817750,1747823551731,-1065.69,0.00035068,5]
[361817751,1747823551741,-420.0,0.00035068,5]
[361817752,1747823551751,-1253.93,0.00035068,5]
[361817753,1747823551762,-1274.75,0.00035068,5]
[361817754,1747823551772,-463.91,0.00035068,5]
[361817755,1747823551782,-721.97,0.00035068,5]
[361817756,1747823551792,-420.0,0.00035068,5]
[361817757,1747823551801,-821.62,0.00035068,5]
[361817758,1747823551811,-420.0,0.00035068,5]
[361817759,1747823551820,-422.38,0.00035068,5]
[361817760,1747823551830,-550.85,0.00035068,5]
[361817761,1747823551839,-1544.61,0.00035068,5]
[361817762,1747823551848,-420.0,0.00035068,5]
[361817763,1747823551858,-499.46,0.00035068,5]
[361817764,1747823551867,-420.0,0.00035068,5]
[361817765,1747823551877,-678.04,0.00035068,5]
[361817766,1747823551886,-616.6,0.00035068,5]
[361817767,1747823551896,-1170.85,0.00035068,5]
[361817768,1747823551906,-546.75,0.00035068,5]
[361817769,1747823551916,-420.0,0.00035068,5]
[361817770,1747823551926,-420.0,0.00035068,5]
[361817771,1747823551935,-420.0,0.00035068,5]
[361817772,1747823551946,-1581.01,0.00035068,5]
[361817773,1747823551955,-420.0,0.00035068,5]
[361817774,1747823551965,-2020.82,0.00035068,5]
[361817775,1747823551975,-1587.36,0.00035068,5]
[361817776,1747823551984,-440.31,0.00035068,5]
[361817777,1747823551994,-528.73,0.00035068,5]
[361817778,1747823552003,-420.0,0.00035068,5]
[361817779,1747823552012,-530.24,0.00035068,5]
[361817780,1747823552020,-835.65,0.00035068,5]
[361817781,1747823552029,-420.0,0.00035068,5]
[361817782,1747823552039,-420.0,0.00035068,5]
[361817783,1747823552048,-632.49,0.00035068,5]
[361817784,1747823552058,-151.0,0.00035068,7]
[361817785,1747823552068,-151.0,0.00035068,7]
[361817786,1747823552078,-151.0,0.00035068,7]
[361817787,1747823552089,-151.0,0.00035068,7]
[361817788,1747823552099,-712.53,0.00035068,5]
[361817789,1747823552109,-151.0,0.00035068,7]
[361817790,1747823552118,-151.0,0.00035068,7]
[361817791,1747823552127,-151.0,0.00035068,7]
[361817792,1747823552137,-420.0,0.00035068,5]
[361817793,1747823552146,-420.0,0.00035068,5]
[361817794,1747823552157,-905.81,0.00035068,5]
[361817795,1747823552166,-420.0,0.00035068,5]
[361817796,1747823552176,-1500.35,0.00035068,5]
[361817797,1747823552185,-913.23,0.00035068,5]
[361817798,1747823552195,-491.09925571,0.00035068,5]
[361817799,1747823552205,-891.23,0.00035068,5]
[361817800,1747823552215,-420.0,0.00035068,5]
[361817801,1747823552224,-420.0,0.00035068,5]
[361817802,1747823552234,-420.0,0.00035068,5]
[361817803,1747823552243,-420.0,0.00035068,5]
[361817804,1747823552252,-793.59,0.00035068,5]
[361817805,1747823552261,-420.0,0.00035068,5]
[361817806,1747823552271,-532.78,0.00035068,5]
[361817807,1747823552280,-420.0,0.00035068,5]
[361817808,1747823552290,-420.0,0.00035068,5]
[361817809,1747823552300,-716.67,0.00035068,5]
[361817810,1747823552309,-431.22,0.00035068,5]
[361817811,1747823552318,-3321.89,0.00035068,5]
[361817812,1747823552328,-655.87,0.00035068,5]
[361817813,1747823552338,-420.0,0.00035068,5]
[361817814,1747823552347,-420.0,0.00035068,5]
[361817815,1747823552356,-464.92,0.00035068,5]
[361817816,1747823552365,-752.46,0.00035068,5]
[361817817,1747823552377,-1164.32,0.00035068,5]
[361817818,1747823552385,-420.0,0.00035068,5]
[361817819,1747823552395,-447.46,0.00035068,5]
[361817820,1747823552404,-420.0,0.00035068,5]
[361817821,1747823552415,-1182.51,0.00035068,5]
[361817822,1747823552424,-970.46,0.00035068,5]
[361817823,1747823552434,-2566.8,0.00035068,3]
[361817824,1747823552444,-420.0,0.00035068,5]
[361817825,1747823552454,-986.1,0.00035068,5]
[361817826,1747823552464,-3544.76,0.00035068,5]
[361817827,1747823552473,-528.46,0.00035068,5]
[361817828,1747823552483,-420.0,0.00035068,5]
[361817829,1747823552492,-420.0,0.00035068,5]
[361817830,1747823552501,-151.0,0.00035068,7]
[361817831,1747823552510,-151.0,0.00035068,7]
[361817832,1747823552519,-151.0,0.00035068,7]
[361817833,1747823552529,-151.0,0.00035068,7]
[361817834,1747823552538,-151.0,0.00035068,7]
[361817835,1747823552548,-1116.24,0.00035068,5]
[361817836,1747823552557,-151.0,0.00035068,7]
[361817837,1747823552566,-151.0,0.00035068,7]
[361817838,1747823552576,-607.2,0.00035068,5]
[361817839,1747823552586,-151.0,0.00035068,7]
[361817840,1747823552595,-498.41,0.00035068,5]
[361817841,1747823552604,-151.0,0.00035068,7]
[361817842,1747823552614,-511.54,0.00035068,5]
[361817843,1747823552623,-151.0,0.00035068,7]
[361817844,1747823552633,-151.0,0.00035068,7]
[361817845,1747823552642,-151.0,0.00035068,7]
[361817846,1747823552651,-420.0,0.00035068,5]
[361817847,1747823552661,-151.0,0.00035068,7]
[361817848,1747823552671,-185.332272,0.00035068,7]
[361817849,1747823552680,-1446.26,0.00035068,5]
[361817850,1747823552689,-533.97286834,0.00035068,5]
[361817851,1747823552698,-635.53,0.00035068,5]
[361817852,1747823552708,-420.0,0.00035068,5]
[361817853,1747823552718,-420.0,0.00035068,5]
[361817854,1747823552727,-420.0,0.00035068,5]
[361817855,1747823552737,-420.0,0.00035068,5]
[361817856,1747823552747,-602.05,0.00035068,5]
[361817857,1747823552756,-420.0,0.00035068,5]
[361817858,1747823552766,-3171.93,0.00035068,5]
[361817859,1747823552776,-255.9833507,0.00035068,5]
[361817860,1747823552785,-420.0,0.00035068,5]
[361817861,1747823552795,-672.06,0.00035068,5]
[361817862,1747823552806,-1136.92,0.00035068,5]
[361817863,1747823552817,-501.87,0.00035068,5]
[361817864,1747823552827,-420.0,0.00035068,5]
[361817865,1747823552838,-960.17,0.00035068,5]
[361817866,1747823552848,-420.0,0.00035068,5]
[361817867,1747823552858,-1498.01,0.00035068,5]
[361817868,1747823552869,-420.0,0.00035068,5]
[361817869,1747823552879,-420.0,0.00035068,5]
[361817870,1747823552889,-489.93,0.00035068,5]
[361817871,1747823552899,-420.0,0.00035068,5]
[361817872,1747823552908,-420.0,0.00035068,5]
[361817873,1747823552918,-151.0,0.00035068,7]